fUST/lending_fUST_20250927
["ID","MTS","AMOUNT","RATE_DAILY","PERIOD"]
[388023950,1758970232177,-500.0,0.00029957,2]
[388023952,1758970232187,-500.0,0.00029957,2]
[388023954,1758970232198,-500.0,0.00029957,2]
[388023956,1758970232208,-500.0,0.00029957,2]
[388023958,1758970232217,-808.11041813,0.00029959,2]
[388023960,1758970232226,-346.0,0.0003,2]
[388023962,1758970232236,-309.0,0.00030372,2]
[388023964,1758970232245,-518.42161303,0.00030661,2]
[388023966,1758970232255,-490.36420006,0.00030712,2]
[388023968,1758970232265,-480.0,0.00030758,15]
[388023970,1758970232274,-193.528644,0.0003076,60]
[388023972,1758970232284,-518.42161298,0.00031909,2]
[388023974,1758970232293,-227.522,0.00031987,31]
[388023976,1758970232302,-177.4108125,0.00032,120]
[388023978,1758970232312,-200.0,0.00032,120]
[388023979,1758970232322,-170.71842005,0.00032,120]
[388023980,1758970232332,-163.18138539,0.00032,120]
[388023981,1758970232341,-169.62692056,0.00032,120]
[388023983,1758970232350,-177.4108125,0.000323,120]
[388023985,1758970232359,-170.71842005,0.000323,120]
[388023987,1758970232368,-500.0,0.000323,120]
[388023989,1758970232378,-500.0,0.0003232,2]
[388023991,1758970232387,-177.4108125,0.000326,120]
[388023993,1758970232396,-170.71842005,0.000326,120]
[388023995,1758970232406,-326.44209807,0.0003273,2]
[388024032,1758970237819,-961.7599996,0.0003273,2]
[388024033,1758970237874,-350.79989877,0.0003273,2]
[388024034,1758970237884,-34.39175438,0.00032777,2]
[388024035,1758970237896,-268.61921822,0.00032777,2]
[388024036,1758970238041,-387.0490274,0.00032777,2]
[388024037,1758970238051,-171.87,0.00032777,2]
[388024038,1758970238062,-2300.3117209,0.00032788,2]
[388024039,1758970238072,-177.6869016,0.00032789,2]
[388024040,1758970238082,-176.39013817,0.00032789,2]
[388024041,1758970238092,-161124.25533,0.0003279,2]
[388024042,1758970238102,-183433.7001122,0.000328,2]
[388024043,1758970238112,-160.0,0.000328,2]
[388024044,1758970238125,-500.0,0.0003281,2]
[388024045,1758970238135,-40281.0638325,0.00032811,2]
[388024046,1758970238144,-1556.88,0.0003282,3]
[388024047,1758970238154,-778.44,0.0003282,3]
[388024048,1758970238163,-389.22,0.0003282,3]
[388024049,1758970238173,-194.61,0.0003282,3]
[388024050,1758970238183,-583.87,0.0003282,3]
[388024051,1758970238192,-151.0,0.0003282,3]
[388024052,1758970238202,-151.0,0.0003282,3]
[388024053,1758970238212,-191.0278602,0.0003282,3]
[388024054,1758970238221,-500.0,0.00032821,2]
[388024055,1758970238231,-500.0,0.00032821,2]
[388024056,1758970238240,-500.0,0.00032821,2]
[388024057,1758970238250,-500.0,0.00032821,2]
[388024058,1758970238259,-500.0,0.00032821,2]
[388024059,1758970238269,-500.0,0.00032821,2]
[388024060,1758970238279,-500.0,0.00032821,2]
[388024061,1758970238288,-500.0,0.00032821,2]
[388024062,1758970238298,-500.0,0.00032821,2]
[388024063,1758970238307,-500.0,0.00032821,2]
[388024064,1758970238317,-500.0,0.00032821,2]
[388024065,1758970238327,-500.0,0.00032821,2]
[388024066,1758970238336,-250.0,0.00032821,2]
[388024067,1758970238346,-250.0,0.00032821,2]
[388024068,1758970238356,-500.0,0.00032821,2]
[388024069,1758970238366,-1018.0,0.00032821,2]
[388024070,1758970238376,-230.82272375,0.00032821,2]
[388024071,1758970238385,-6239.98658691,0.00032828,2]
[388024072,1758970238395,-1305.1792865,0.0003283,2]
[388024073,1758970238405,-80562.1276649,0.0003283,2]
[388024074,1758970238416,-370000.0,0.0003284,2]
[388024075,1758970238426,-500.0,0.00032873,5]
[388024076,1758970238435,-500.0,0.00032873,5]
[388024077,1758970238445,-514.45079761,0.00032873,5]
[388024078,1758970238455,-500.0,0.00032873,5]
[388024079,1758970238464,-500.0,0.00032873,5]
[388024080,1758970238473,-407.12619999,0.00032873,5]
[388024081,1758970238482,-423.9183814,0.00032873,5]
[388024082,1758970238491,-500.0,0.00032873,5]
[388024083,1758970238500,-500.0,0.00032873,5]
[388024084,1758970238509,-500.0,0.00032873,5]
[388024085,1758970238519,-690.057239,0.00032877,2]
[388024086,1758970238527,-151.0,0.000329,10]
[388024087,1758970238536,-299.27980241,0.00032925,20]
[388024088,1758970238545,-244.37557743,0.00032925,20]
[388024089,1758970238555,-151.0,0.00032925,20]
[388024090,1758970238564,-151.0,0.00032925,20]
[388024091,1758970238573,-183.245832,0.00032928,7]
[388024092,1758970238582,-727.117318,0.00032928,7]
[388024093,1758970238592,-183.245832,0.00032928,7]
[388024094,1758970238600,-727.117318,0.00032928,7]
[388024095,1758970238609,-183.245832,0.00032928,7]
[388024096,1758970238618,-151.0,0.00032928,7]
[388024097,1758970238627,-727.117318,0.00032928,7]
[388024098,1758970238636,-183.245832,0.00032928,7]
[388024099,1758970238645,-151.0,0.00032928,7]
[388024100,1758970238653,-727.117318,0.00032928,7]
[388024101,1758970238662,-478.257133,0.00032928,7]
[388024102,1758970238671,-478.257133,0.00032928,7]
[388024103,1758970238679,-478.257133,0.00032928,7]
[388024104,1758970238688,-478.257133,0.00032928,7]
[388024105,1758970238697,-151.0,0.00032928,7]
[388024106,1758970238706,-151.0,0.00032928,7]
[388024107,1758970238714,-151.0,0.00032928,7]
[388024108,1758970238723,-151.0,0.00032928,7]
[388024109,1758970238732,-151.0,0.00032928,7]
[388024110,1758970238741,-4860.737053,0.00032928,7]
[388024111,1758970238751,-151.0,0.00032928,7]
[388024112,1758970238761,-4860.737053,0.00032928,7]
[388024113,1758970238771,-215.64272,0.00032928,7]
[388024114,1758970238780,-151.0,0.00032928,7]
[388024115,1758970238790,-4860.737053,0.00032928,7]
[388024116,1758970238799,-151.0,0.00032928,7]
[388024117,1758970238808,-4860.737053,0.00032928,7]
[388024118,1758970238817,-151.0,0.00032928,7]
[388024119,1758970238826,-151.0,0.00032928,7]
[388024120,1758970238835,-164.087008,0.00032928,7]
[388024121,1758970238844,-164.087008,0.00032928,7]
[388024122,1758970238853,-151.0,0.00032928,7]
[388024123,1758970238863,-164.087008,0.00032928,7]
[388024124,1758970238872,-164.087008,0.00032928,7]
[388024125,1758970238882,-151.0,0.00032928,7]
[388024126,1758970238891,-870.129204,0.00032928,7]
[388024127,1758970238900,-430.368419,0.00032928,7]
[388024128,1758970238910,-870.129204,0.00032928,7]
[388024129,1758970238919,-430.368419,0.00032928,7]
[388024130,1758970238928,-430.368419,0.00032928,7]
[388024131,1758970238937,-430.368419,0.00032928,7]
[388024132,1758970238946,-271.053911,0.00032928,7]
[388024133,1758970238955,-377.401103,0.00032928,7]
[388024134,1758970238964,-271.053911,0.00032928,7]
[388024135,1758970238974,-377.401103,0.00032928,7]
[388024136,1758970238984,-271.053911,0.00032928,7]
[388024137,1758970238993,-377.401103,0.00032928,7]
[388024138,1758970239003,-271.053911,0.00032928,7]
[388024139,1758970239012,-377.401103,0.00032928,7]
[388024140,1758970239022,-249.264531,0.00032928,7]
[388024141,1758970239032,-218.234687,0.00032928,7]
[388024142,1758970239041,-249.264531,0.00032928,7]
[388024143,1758970239050,-249.264531,0.00032928,7]
[388024144,1758970239060,-249.264531,0.00032928,7]
[388024145,1758970239068,-151.379764,0.00032928,7]
[388024146,1758970239077,-151.379764,0.00032928,7]
[388024147,1758970239087,-151.379764,0.00032928,7]
[388024148,1758970239096,-151.379764,0.00032928,7]
[388024149,1758970239106,-1218.33306,0.00032928,7]
[388024150,1758970239118,-1218.33306,0.00032928,7]
[388024151,1758970239134,-1218.33306,0.00032928,7]
[388024152,1758970239143,-1218.33306,0.00032928,7]
[388024153,1758970239153,-158.667004,0.00032928,7]
[388024154,1758970239162,-233.171577,0.00032928,7]
[388024155,1758970239173,-158.667004,0.00032928,7]
[388024156,1758970239185,-233.171577,0.00032928,7]
[388024157,1758970239196,-158.667004,0.00032928,7]
[388024158,1758970239206,-233.171577,0.00032928,7]
[388024159,1758970239215,-159.210637,0.00032928,7]
[388024160,1758970239224,-158.667004,0.00032928,7]
[388024161,1758970239234,-233.171577,0.00032928,7]
[388024162,1758970239242,-151.0,0.00032928,7]
[388024163,1758970239251,-151.0,0.00032928,7]
[388024164,1758970239262,-5713.517822,0.00032928,7]
[388024165,1758970239272,-5713.517822,0.00032928,7]
[388024166,1758970239281,-5713.517822,0.00032928,7]
[388024167,1758970239291,-5713.517822,0.00032928,7]
[388024168,1758970239300,-151.0,0.00032928,7]
[388024170,1758970239309,-151.0,0.00032928,7]
[388024172,1758970239318,-264.591288,0.00032928,7]
[388024173,1758970239328,-4571.04285028,0.00032936,3]
[388024176,1758970239338,-657623.99372644,0.00032937,20]
[388024177,1758970239347,-3580.83576083,0.00032937,2]
[388024179,1758970239357,-616.5195758,0.00032937,2]
[388024183,1758970239366,-7680.60878971,0.00032937,30]
[388024186,1758970239375,-12116.88619757,0.00032937,2]
[388024188,1758970239384,-151.0,0.00032937,7]
[388024190,1758970239393,-151.0,0.00032937,7]
[388024191,1758970239403,-151.0,0.00032937,7]
[388024192,1758970239412,-10000.0,0.00032937,7]
[388024193,1758970239421,-874.987287,0.00032937,7]
[388024194,1758970239429,-10000.0,0.00032937,7]
[388024195,1758970239439,-874.987287,0.00032937,7]
[388024196,1758970239447,-10000.0,0.00032937,7]
[388024197,1758970239456,-874.987287,0.00032937,7]
[388024198,1758970239465,-10000.0,0.00032937,7]
[388024199,1758970239474,-874.987287,0.00032937,7]
[388024200,1758970239483,-10000.0,0.00032937,7]
[388024201,1758970239491,-244.898911,0.00032937,7]
[388024202,1758970239500,-10000.0,0.00032937,7]
[388024203,1758970239509,-244.898911,0.00032937,7]
[388024204,1758970239520,-10000.0,0.00032937,7]
[388024205,1758970239529,-244.898911,0.00032937,7]
[388024206,1758970239538,-10000.0,0.00032937,7]
[388024207,1758970239547,-244.898911,0.00032937,7]
[388024208,1758970239557,-151.0,0.00032937,7]
[388024209,1758970239568,-549.146863,0.00032937,7]
[388024210,1758970239578,-418.354137,0.00032937,7]
[388024211,1758970239587,-151.0,0.00032937,7]
[388024212,1758970239596,-549.146863,0.00032937,7]
[388024213,1758970239605,-418.354137,0.00032937,7]
[388024214,1758970239615,-151.0,0.00032937,7]
[388024215,1758970239626,-549.146863,0.00032937,7]
[388024216,1758970239639,-418.354137,0.00032937,7]
[388024217,1758970239655,-549.146863,0.00032937,7]
[388024218,1758970239666,-151.0,0.00032937,7]
[388024219,1758970239676,-418.354137,0.00032937,7]
[388024220,1758970239685,-151.0,0.00032937,7]
[388024221,1758970239694,-988.329363,0.00032937,7]
[388024222,1758970239703,-988.329363,0.00032937,7]
[388024223,1758970239713,-988.329363,0.00032937,7]
[388024224,1758970239723,-988.329363,0.00032937,7]
[388024225,1758970239732,-570.803334,0.00032937,7]
[388024226,1758970239742,-570.803334,0.00032937,7]
[388024227,1758970239751,-570.803334,0.00032937,7]
[388024228,1758970239760,-151.0,0.00032937,7]
[388024229,1758970239771,-570.803334,0.00032937,7]
[388024230,1758970239780,-151.0,0.00032937,7]
[388024231,1758970239789,-151.0,0.00032937,7]
[388024232,1758970239798,-151.0,0.00032937,7]
[388024233,1758970239807,-151.0,0.00032937,7]
[388024234,1758970239817,-151.0,0.00032937,7]
[388024235,1758970239827,-151.0,0.00032937,7]
[388024236,1758970239836,-178.161683,0.00032937,7]
[388024237,1758970239846,-151.0,0.00032937,7]
[388024238,1758970239857,-152.716367,0.00032937,7]
[388024239,1758970239867,-151.0,0.00032937,7]
[388024240,1758970239876,-178.161683,0.00032937,7]
[388024241,1758970239886,-151.0,0.00032937,7]
[388024242,1758970239895,-178.161683,0.00032937,7]
[388024244,1758970239904,-234.209729,0.00032937,7]
[388024245,1758970239914,-151.0,0.00032937,7]
[388024246,1758970239923,-234.209729,0.00032937,7]
[388024247,1758970239933,-178.161683,0.00032937,7]
[388024248,1758970239942,-151.0,0.00032937,7]
[388024249,1758970239951,-209.31866,0.00032937,7]
[388024250,1758970239960,-234.209729,0.00032937,7]
[388024251,1758970239969,-151.0,0.00032937,7]
[388024252,1758970239979,-209.31866,0.00032937,7]
[388024253,1758970239988,-234.209729,0.00032937,7]
[388024254,1758970239998,-209.31866,0.00032937,7]
[388024255,1758970240009,-209.31866,0.00032937,7]
[388024256,1758970240019,-151.0,0.00032937,7]
[388024257,1758970240028,-151.0,0.00032937,7]
[388024258,1758970240038,-178.814501,0.00032937,7]
[388024259,1758970240047,-151.0,0.00032937,7]
[388024260,1758970240056,-178.814501,0.00032937,7]
[388024261,1758970240065,-2916.503638,0.00032937,7]
[388024262,1758970240075,-151.0,0.00032937,7]
[388024263,1758970240084,-178.814501,0.00032937,7]
[388024264,1758970240093,-212.018758,0.00032937,7]
[388024265,1758970240103,-2916.503638,0.00032937,7]
[388024266,1758970240112,-151.842893,0.00032937,7]
[388024267,1758970240126,-178.814501,0.00032937,7]
[388024268,1758970240136,-212.018758,0.00032937,7]
[388024269,1758970240146,-2916.503638,0.00032937,7]
[388024270,1758970240155,-212.018758,0.00032937,7]
[388024271,1758970240165,-2916.503638,0.00032937,7]
[388024272,1758970240174,-212.018758,0.00032937,7]
[388024273,1758970240183,-471.324711,0.00032937,7]
[388024274,1758970240192,-196.817948,0.00032937,7]
[388024275,1758970240202,-471.324711,0.00032937,7]
[388024276,1758970240211,-196.817948,0.00032937,7]
[388024277,1758970240220,-471.324711,0.00032937,7]
[388024278,1758970240229,-196.817948,0.00032937,7]
[388024279,1758970240239,-471.324711,0.00032937,7]
[388024280,1758970240248,-151.0,0.00032937,7]
[388024281,1758970240257,-196.817948,0.00032937,7]
[388024282,1758970240266,-151.0,0.00032937,7]
[388024283,1758970240451,-151.0,0.00032937,7]
[388024284,1758970240465,-790.845021,0.00032937,7]
[388024285,1758970240474,-151.1174203,0.00032937,2]
[388024286,1758970240484,-790.845021,0.00032937,7]
[388024287,1758970240493,-790.845021,0.00032937,7]
[388024288,1758970240502,-289.874401,0.00032937,7]
[388024289,1758970240511,-790.845021,0.00032937,7]
[388024290,1758970240521,-2788.66261033,0.00032953,4]
[388024291,1758970240531,-503.56329011,0.00032973,5]
[388024292,1758970240540,-502.23411628,0.00032973,5]
[388024293,1758970240549,-32899.92609296,0.0003299,2]
[388024294,1758970240559,-1370.49,0.00033,14]
[388024295,1758970240568,-500.0,0.00033084,2]
[388024296,1758970240577,-151.0,0.00033094,3]
[388024297,1758970240586,-500.0,0.00033095,2]
[388024298,1758970240600,-1018.0,0.00033095,2]
[388024299,1758970240610,-518.42161298,0.00033158,2]
[388024300,1758970240620,-152.82333325,0.00033199,20]
[388024301,1758970240630,-151.0,0.00033199,20]
[388024302,1758970240640,-260.0,0.00033348,2]
[388024303,1758970240649,-416.37793807,0.00033358,2]
[388024304,1758970240659,-151.0,0.00033368,3]
[388024305,1758970240669,-346.12661906,0.00033369,2]
[388024306,1758970240678,-1018.0,0.00033369,2]
[388024307,1758970240687,-398.20522601,0.00033421,5]
[388024308,1758970240697,-1000.0,0.00033421,5]
[388024309,1758970240706,-1000.0,0.00033421,5]
[388024310,1758970240716,-1000.0,0.00033421,5]
[388024311,1758970240725,-1000.0,0.00033421,5]
[388024312,1758970240734,-1000.0,0.00033421,5]
[388024313,1758970240743,-1639.00199642,0.00033427,2]
[388024314,1758970240752,-151.0,0.00033473,20]
[388024315,1758970240762,-217.73235,0.00033595,60]
[388024316,1758970240772,-196.20283431,0.00033642,3]
[388024317,1758970240781,-1018.0,0.00033643,2]
[388024318,1758970240790,-151.0,0.00033747,20]
[388024319,1758970240802,-360.0,0.00033896,2]
[388024320,1758970240811,-1018.0,0.00033917,2]
[388024321,1758970240821,-500.0,0.00033968,5]
[388024322,1758970240830,-1500.0,0.00033968,5]
[388024323,1758970240840,-643.06087871,0.00033968,5]
[388024324,1758970240850,-1500.0,0.00033968,5]
[388024325,1758970240859,-1500.0,0.00033968,5]
[388024326,1758970240868,-245.0,0.00034021,20]
[388024327,1758970240878,-1639.00199642,0.00034123,2]
[388024328,1758970240887,-923.0,0.00034145,2]
[388024329,1758970240897,-3113.76,0.0003419,3]
[388024330,1758970240907,-1556.88,0.0003419,3]
[388024331,1758970240917,-778.44,0.0003419,3]
[388024332,1758970240926,-389.22,0.0003419,3]
[388024333,1758970240936,-1018.0,0.00034191,2]
[388024334,1758970240945,-500.0,0.00034246,30]
[388024335,1758970240955,-500.0,0.00034246,30]
[388024336,1758970240964,-500.0,0.00034246,30]
[388024337,1758970240974,-500.0,0.00034246,30]
[388024338,1758970240983,-500.0,0.00034246,30]
[388024339,1758970240993,-406.14,0.000343,3]
[388024340,1758970241002,-518.42161298,0.00034406,2]
[388024341,1758970241012,-460.0,0.00034444,2]
[388024342,1758970241022,-1018.0,0.00034465,2]
[388024343,1758970241032,-826.53650875,0.00034516,5]
[388024344,1758970241041,-1192.47764772,0.00034516,5]
[388024345,1758970241051,-1018.0,0.00034739,2]
[388024346,1758970241060,-1639.00199642,0.0003482,2]
[388024347,1758970241070,-390.611828,0.00034834,30]
[388024348,1758970241079,-390.611828,0.00034834,30]
[388024349,1758970241088,-390.611828,0.00034834,30]
[388024350,1758970241097,-390.611828,0.00034834,30]
[388024351,1758970241106,-390.611828,0.00034834,30]
[388024352,1758970241120,-160.0,0.00034854,2]
[388024353,1758970241129,-160.0,0.00034854,2]
[388024354,1758970241139,-233.76631357,0.00034863,2]
[388024355,1758970241149,-160.0,0.00034863,2]
[388024356,1758970241160,-1000.0,0.00034869,120]
[388024357,1758970241170,-152.31519665,0.00034876,2]
[388024358,1758970241179,-151.31135269,0.00034876,2]
[388024359,1758970241189,-281.82430058,0.00034876,2]
[388024360,1758970241201,-151.15484948,0.00034876,2]
[388024361,1758970241210,-237.803649,0.0003488,7]
[388024362,1758970241220,-237.803649,0.0003488,7]
[388024363,1758970241229,-237.803649,0.0003488,7]
[388024364,1758970241238,-237.803649,0.0003488,7]
[388024365,1758970241247,-151.0,0.0003488,7]
[388024366,1758970241257,-151.0,0.0003488,7]
[388024367,1758970241266,-151.0,0.0003488,7]
[388024368,1758970241276,-151.0,0.0003488,7]
[388024369,1758970241286,-162.296056,0.0003488,7]
[388024370,1758970241295,-162.296056,0.0003488,7]
[388024371,1758970241305,-162.296056,0.0003488,7]
[388024372,1758970241315,-179.69,0.0003488,7]
[388024373,1758970241325,-162.296056,0.0003488,7]
[388024374,1758970241335,-179.69,0.0003488,7]
[388024375,1758970241345,-179.69,0.0003488,7]
[388024376,1758970241355,-179.69,0.0003488,7]
[388024377,1758970241364,-151.0,0.0003488,7]
[388024378,1758970241373,-164.500268,0.0003488,7]
[388024379,1758970241383,-312.378112,0.0003488,7]
[388024380,1758970241392,-312.378112,0.0003488,7]
[388024381,1758970241401,-312.378112,0.0003488,7]
[388024382,1758970241411,-312.378112,0.0003488,7]
[388024383,1758970241420,-151.0,0.0003488,7]
[388024384,1758970241430,-151.0,0.0003488,7]
[388024385,1758970241439,-181.2,0.0003488,7]
[388024386,1758970241448,-181.2,0.0003488,7]
[388024387,1758970241458,-181.2,0.0003488,7]
[388024388,1758970241467,-181.2,0.0003488,7]
[388024389,1758970241477,-560.0,0.00034992,2]
[388024390,1758970241486,-2000.0,0.00035,35]
[388024391,1758970241496,-153.37892644,0.00035006,120]
[388024392,1758970241505,-417.998,0.00035007,2]
[388024393,1758970241514,-2161.0,0.00035007,2]
[388024394,1758970241524,-635.0,0.00035007,2]
[388024395,1758970241534,-1018.0,0.00035013,2]
[388024396,1758970241543,-731.0,0.00035071,7]
[388024397,1758970241552,-349.118172,0.00035164,7]
[388024398,1758970241562,-151.103867,0.00035164,7]
[388024399,1758970241572,-349.118172,0.00035164,7]
[388024400,1758970241582,-349.118172,0.00035164,7]
[388024401,1758970241591,-349.118172,0.00035164,7]
[388024402,1758970241600,-204.162259,0.00035164,7]
[388024403,1758970241610,-204.162259,0.00035164,7]
[388024404,1758970241619,-204.162259,0.00035164,7]
[388024405,1758970241628,-151.0,0.00035164,7]
[388024406,1758970241637,-204.162259,0.00035164,7]
[388024407,1758970241647,-296.694966,0.00035164,7]
[388024408,1758970241656,-151.0,0.00035164,7]
[388024409,1758970241666,-151.0,0.00035164,7]
[388024410,1758970241675,-151.0,0.00035164,7]
[388024411,1758970241684,-923.0,0.00035174,7]
[388024412,1758970241693,-1018.0,0.00035287,2]
[388024413,1758970241703,-731.0,0.00035421,2]
[388024414,1758970241712,-151.379764,0.00035516,7]
[388024415,1758970241721,-151.379764,0.00035516,7]
[388024416,1758970241730,-151.379764,0.00035516,7]
[388024417,1758970241740,-151.379764,0.00035516,7]
[388024418,1758970241750,-1218.33306,0.00035516,7]
[388024419,1758970241759,-1218.33306,0.00035516,7]
[388024420,1758970241769,-1218.33306,0.00035516,7]
[388024421,1758970241778,-1218.33306,0.00035516,7]
[388024422,1758970241787,-1639.00199642,0.00035516,2]
[388024423,1758970241797,-158.667004,0.00035516,7]
[388024424,1758970241807,-233.171577,0.00035516,7]
[388024425,1758970241816,-233.171577,0.00035516,7]
[388024426,1758970241826,-158.667004,0.00035516,7]
[388024427,1758970241835,-233.171577,0.00035516,7]
[388024428,1758970241844,-158.667004,0.00035516,7]
[388024429,1758970241854,-233.171577,0.00035516,7]
[388024430,1758970241863,-158.667004,0.00035516,7]
[388024431,1758970241872,-151.0,0.00035516,7]
[388024432,1758970241882,-151.0,0.00035516,7]
[388024433,1758970241891,-5713.517822,0.00035516,7]
[388024434,1758970241901,-5713.517822,0.00035516,7]
[388024435,1758970241911,-5713.517822,0.00035516,7]
[388024436,1758970241921,-5713.517822,0.00035516,7]
[388024437,1758970241930,-151.0,0.00035516,7]
[388024438,1758970241939,-151.0,0.00035516,7]
[388024439,1758970241949,-874.987287,0.00035516,7]
[388024440,1758970241958,-874.987287,0.00035516,7]
[388024441,1758970241969,-874.987287,0.00035516,7]
[388024442,1758970241978,-874.987287,0.00035516,7]
[388024443,1758970241987,-549.146863,0.00035516,7]
[388024444,1758970241997,-549.146863,0.00035516,7]
[388024445,1758970242008,-549.146863,0.00035516,7]
[388024446,1758970242018,-549.146863,0.00035516,7]
[388024447,1758970242028,-296.9209673,0.00035519,30]
[388024448,1758970242037,-464.6704616,0.00035519,30]
[388024449,1758970242047,-165.7184018,0.00035519,30]
[388024450,1758970242057,-319.8133253,0.00035519,30]
[388024451,1758970242066,-422.9872888,0.00035519,30]
[388024452,1758970242075,-585.0898729,0.00035519,30]
[388024453,1758970242085,-309.08802582,0.0003554,2]
[388024454,1758970242095,-1018.0,0.00035561,2]
[388024455,1758970242104,-151.0,0.00035596,7]
[388024456,1758970242114,-151.0,0.00035596,7]
[388024457,1758970242126,-151.0,0.00035596,7]
[388024458,1758970242136,-151.0,0.00035596,7]
[388024459,1758970242145,-151.0,0.00035596,7]
[388024460,1758970242154,-151.0,0.00035596,7]
[388024461,1758970242163,-249.608764,0.00035596,7]
[388024462,1758970242173,-151.0,0.00035596,7]
[388024463,1758970242182,-151.0,0.00035596,7]
[388024464,1758970242191,-151.0,0.00035596,7]
[388024465,1758970242200,-151.0,0.00035596,7]
[388024466,1758970242210,-158.978155,0.00035596,7]
[388024467,1758970242220,-151.0,0.00035596,7]
[388024468,1758970242229,-151.0,0.00035596,7]
[388024469,1758970242239,-151.0,0.00035596,7]
[388024470,1758970242248,-151.0,0.00035596,7]
[388024471,1758970242257,-151.0,0.00035596,7]
[388024472,1758970242267,-151.0,0.00035596,7]
[388024473,1758970242277,-194.244959,0.00035596,7]
[388024474,1758970242287,-194.244959,0.00035596,7]
[388024475,1758970242296,-194.244959,0.00035596,7]
[388024476,1758970242306,-194.244959,0.00035596,7]
[388024477,1758970242316,-151.0,0.00035596,7]
[388024478,1758970242325,-241.980773,0.00035596,7]
[388024479,1758970242335,-241.980773,0.00035596,7]
[388024480,1758970242344,-241.980773,0.00035596,7]
[388024481,1758970242354,-241.980773,0.00035596,7]
[388024482,1758970242364,-248.738887,0.00035596,7]
[388024483,1758970242373,-248.738887,0.00035596,7]
[388024484,1758970242383,-248.738887,0.00035596,7]
[388024485,1758970242392,-248.738887,0.00035596,7]
[388024486,1758970242402,-365.705986,0.00035596,7]
[388024487,1758970242411,-365.705986,0.00035596,7]
[388024488,1758970242420,-365.705986,0.00035596,7]
[388024489,1758970242431,-365.705986,0.00035596,7]
[388024490,1758970242440,-236.792001,0.00035596,7]
[388024491,1758970242449,-236.792001,0.00035596,7]
[388024492,1758970242458,-236.792001,0.00035596,7]
[388024494,1758970242467,-236.792001,0.00035596,7]
[388024496,1758970242476,-151.0,0.00035596,7]
[388024498,1758970242486,-151.0,0.00035596,7]
[388024499,1758970242495,-151.0,0.00035596,7]
[388024500,1758970242503,-203.147311,0.00035596,7]
[388024501,1758970242513,-151.0,0.00035596,7]
[388024502,1758970242522,-151.0,0.00035596,7]
[388024503,1758970242531,-151.0,0.00035596,7]
[388024504,1758970242540,-304.472722,0.00035596,7]
[388024505,1758970242549,-304.472722,0.00035596,7]
[388024506,1758970242558,-304.472722,0.00035596,7]
[388024507,1758970242568,-304.472722,0.00035596,7]
[388024508,1758970242576,-2074.875147,0.00035596,7]
[388024509,1758970242585,-2074.875147,0.00035596,7]
[388024510,1758970242593,-2074.875147,0.00035596,7]
[388024511,1758970242602,-2074.875147,0.00035596,7]
[388024512,1758970242611,-979.333649,0.00035596,7]
[388024513,1758970242620,-979.333649,0.00035596,7]
[388024514,1758970242630,-979.333649,0.00035596,7]
[388024515,1758970242639,-979.333649,0.00035596,7]
[388024516,1758970242648,-253.408429,0.00035596,7]
[388024517,1758970242657,-253.408429,0.00035596,7]
[388024518,1758970242666,-253.408429,0.00035596,7]
[388024519,1758970242675,-253.408429,0.00035596,7]
[388024520,1758970242684,-303.914462,0.00035596,7]
[388024521,1758970242693,-151.0,0.00035596,7]
[388024522,1758970242702,-303.914462,0.00035596,7]